fUST/lending_fUST_20250227
["ID","MTS","AMOUNT","RATE_DAILY","PERIOD"]
[354673849,1740611465278,-500.0,0.00049863,120]
[354673850,1740611465288,-1036.71,0.00049863,120]
[354673851,1740611465301,-2165.35,0.00049863,120]
[354673852,1740611465310,-844.46,0.00049863,120]
[354673853,1740611465319,-500.0,0.00049863,120]
[354673854,1740611465328,-639.06,0.00049863,120]
[354673855,1740611465339,-500.0,0.00049863,120]
[354673856,1740611465348,-500.0,0.00049863,120]
[354673857,1740611465357,-500.0,0.00049863,120]
[354673858,1740611465366,-500.0,0.00049863,120]
[354673859,1740611465378,-500.0,0.00049863,15]
[354673860,1740611465387,-878.22,0.00049863,120]
[354673861,1740611465396,-500.0,0.00049863,120]
[354673862,1740611465406,-854.77,0.00049863,120]
[354673863,1740611465415,-500.0,0.00049863,120]
[354673864,1740611465425,-577.62195658,0.00049863,120]
[354673865,1740611465435,-500.0,0.00049863,120]
[354673866,1740611465444,-3779.54,0.00049863,120]
[354673867,1740611465454,-500.0,0.00049863,120]
[354673868,1740611465463,-500.0,0.00049863,120]
[354673869,1740611465473,-267.847665,0.00049863,120]
[354673870,1740611465483,-500.0,0.00049863,120]
[354673871,1740611465492,-267.847665,0.00049863,120]
[354673872,1740611465502,-500.0,0.00049863,120]
[354673873,1740611465512,-1687.82,0.00049863,120]
[354673874,1740611465521,-267.847665,0.00049863,120]
[354673875,1740611465530,-267.847665,0.00049863,120]
[354673876,1740611465540,-2880.14,0.00049863,120]
[354673877,1740611465549,-634.97,0.00049863,120]
[354673878,1740611465558,-500.0,0.00049863,120]
[354673879,1740611465567,-500.0,0.00049863,120]
[354673880,1740611465576,-975.89,0.00049863,120]
[354673881,1740611465585,-914.98,0.00049863,120]
[354673882,1740611465594,-731.19,0.00049863,120]
[354673883,1740611465603,-500.0,0.00049863,120]
[354673884,1740611465612,-151.0,0.00049863,120]
[354673885,1740611465622,-151.0,0.00049863,120]
[354673886,1740611465631,-1009.1,0.00049863,120]
[354673887,1740611465640,-500.0,0.00049863,120]
[354673888,1740611465649,-874.87,0.00049863,120]
[354673889,1740611465659,-500.0,0.00049863,120]
[354673890,1740611465668,-1386.15,0.00049863,120]
[354673891,1740611465677,-151.0,0.00049863,120]
[354673892,1740611465687,-151.0,0.00049863,120]
[354673893,1740611465696,-845.26,0.00049863,120]
[354673894,1740611465705,-2707.39061026,0.00049863,120]
[354673895,1740611465739,-1401.74951982,0.00049315,120]
[354673896,1740611465750,-3598.25048018,0.00049315,120]
[354673897,1740611465760,-4947.66938974,0.00049863,120]
[354673898,1740611465770,-500.0,0.00049863,120]
[354673899,1740611465779,-503.14,0.00049863,120]
[354673900,1740611465788,-8338.3,0.00049863,120]
[354673901,1740611465797,-650.97,0.00049863,120]
[354673902,1740611465807,-4018.31,0.00049863,120]
[354673903,1740611465816,-12327.52,0.00049863,120]
[354673904,1740611465826,-1055.3,0.00049863,120]
[354673905,1740611465835,-500.0,0.00049863,120]
[354673906,1740611465845,-36855.91,0.00049863,6]
[354673907,1740611465854,-500.0,0.00049863,120]
[354673908,1740611465864,-1351.206835,0.00049863,120]
[354673909,1740611465874,-500.0,0.00049863,45]
[354673910,1740611465883,-1759.67,0.00049863,120]
[354673911,1740611465893,-1351.206835,0.00049863,120]
[354673912,1740611465903,-3355.82,0.00049863,120]
[354673913,1740611465913,-664.44,0.00049863,120]
[354673914,1740611465922,-500.0,0.00049863,120]
[354673915,1740611465932,-3070.94,0.00049863,120]
[354673916,1740611465941,-1051.71,0.00049863,120]
[354673917,1740611465951,-340.53803844,0.00049863,120]
[354673918,1740611465960,-1351.206835,0.00049863,120]
[354673919,1740611465970,-1351.206835,0.00049863,120]
[354673920,1740611465979,-619.8,0.00049863,120]
[354673921,1740611465988,-856.99,0.00049863,120]
[354673922,1740611465997,-500.0,0.00049863,120]
[354673923,1740611466007,-3867.34,0.00049863,120]
[354673924,1740611466016,-515.8,0.00049863,120]
[354673925,1740611466025,-1012.08,0.00049863,120]
[354673926,1740611466034,-500.0,0.00049863,120]
[354673927,1740611466043,-1377.87,0.00049863,120]
[354673928,1740611466052,-916.66,0.00049863,120]
[354673929,1740611466062,-151.0,0.00049863,120]
[354673930,1740611466071,-151.0,0.00049863,120]
[354673931,1740611466080,-500.0,0.00049863,120]
[354673932,1740611466090,-1819.52,0.00049863,120]
[354673933,1740611466100,-500.0,0.00049863,120]
[354673934,1740611466109,-3676.74,0.00049863,120]
[354673935,1740611466119,-764.14,0.00049863,120]
[354673936,1740611466129,-422.665024,0.00049863,120]
[354673937,1740611466138,-422.665024,0.00049863,120]
[354673938,1740611466148,-2560.817789,0.00049863,120]
[354673939,1740611466157,-2560.817789,0.00049863,120]
[354673940,1740611466166,-1385.75,0.00049863,120]
[354673941,1740611466176,-422.665024,0.00049863,120]
[354673942,1740611466185,-422.665024,0.00049863,120]
[354673943,1740611466195,-500.0,0.00049863,120]
[354673944,1740611466204,-2560.817789,0.00049863,120]
[354673945,1740611466213,-2560.817789,0.00049863,120]
[354673946,1740611466222,-512.98,0.00049863,30]
[354673947,1740611466231,-196.171338,0.00049863,120]
[354673948,1740611466241,-196.171338,0.00049863,120]
[354673949,1740611466250,-500.0,0.00049863,120]
[354673950,1740611466259,-7126.08,0.00049863,120]
[354673951,1740611466269,-196.171338,0.00049863,120]
[354673952,1740611466279,-196.171338,0.00049863,120]
[354673953,1740611466290,-9629.69,0.00049863,120]
[354673954,1740611466303,-1723.47,0.00049863,120]
[354673955,1740611466313,-11531.12,0.00049863,3]
[354673956,1740611466323,-5537.05,0.00049863,120]
[354673957,1740611466332,-622.39302588,0.00049863,120]
[354673958,1740611466343,-1513.82,0.00049863,120]
[354673959,1740611466353,-1302.01,0.00049863,120]
[354673960,1740611466363,-558.88,0.00049863,120]
[354673961,1740611466374,-1000.0,0.00049863,2]
[354673962,1740611466384,-500.0,0.00049863,120]
[354673963,1740611466393,-4538.85,0.00049863,120]
[354673964,1740611466403,-1496.06,0.00049863,120]
[354673965,1740611466413,-617.406658,0.00049863,120]
[354673966,1740611466423,-21111.03,0.00049863,120]
[354673967,1740611466433,-617.406658,0.00049863,120]
[354673968,1740611466443,-500.0,0.00049863,120]
[354673969,1740611466452,-1093.67,0.00049863,120]
[354673970,1740611466462,-617.406658,0.00049863,120]
[354673971,1740611466472,-500.0,0.00049863,120]
[354673972,1740611466481,-617.406658,0.00049863,120]
[354673973,1740611466491,-151.0,0.00049863,120]
[354673974,1740611466500,-151.0,0.00049863,120]
[354673975,1740611466510,-1635.22,0.00049863,120]
[354673976,1740611466519,-500.0,0.00049863,120]
[354673977,1740611466528,-500.0,0.00049863,120]
[354673978,1740611466538,-571.57,0.00049863,120]
[354673979,1740611466548,-1794.94,0.00049863,120]
[354673980,1740611466557,-1233.1,0.00049863,120]
[354673981,1740611466566,-513.09,0.00049863,120]
[354673982,1740611466576,-500.0,0.00049863,120]
[354673983,1740611466585,-11537.44,0.00049863,120]
[354673984,1740611466596,-3081.52,0.00049863,120]
[354673985,1740611466605,-118597.62,0.00049863,7]
[354673986,1740611466615,-151.0,0.00049863,120]
[354673987,1740611466626,-151.0,0.00049863,120]
[354673988,1740611466635,-500.0,0.00049863,120]
[354673989,1740611466644,-500.0,0.00049863,120]
[354673990,1740611466654,-5821.76,0.00049863,120]
[354673991,1740611466664,-3325.41,0.00049863,120]
[354673992,1740611466674,-500.0,0.00049863,120]
[354673993,1740611466683,-151.0,0.00049863,120]
[354673994,1740611466692,-185.494885,0.00049863,120]
[354673995,1740611466812,-185.494885,0.00049863,120]
[354673996,1740611466823,-1036.74,0.00049863,120]
[354673997,1740611466833,-500.0,0.00049863,120]
[354673998,1740611466842,-2877.43,0.00049863,120]
[354673999,1740611466851,-185.494885,0.00049863,120]
[354674000,1740611466861,-185.494885,0.00049863,120]
[354674001,1740611466870,-1005.91,0.00049863,120]
[354674002,1740611466881,-500.0,0.00049863,120]
[354674003,1740611466890,-1489.25,0.00049863,120]
[354674004,1740611466899,-8691.6,0.00049863,120]
[354674005,1740611466908,-2049.04,0.00049863,120]
[354674006,1740611466918,-1795.99,0.00049863,120]
[354674007,1740611466928,-500.0,0.00049863,120]
[354674008,1740611466937,-872.06,0.00049863,120]
[354674009,1740611466947,-500.0,0.00049863,120]
[354674010,1740611466956,-1405.94,0.00049863,120]
[354674011,1740611466965,-500.0,0.00049863,120]
[354674012,1740611466975,-1815.94,0.00049863,120]
[354674013,1740611466984,-500.0,0.00049863,120]
[354674014,1740611466994,-586.85,0.00049863,120]
[354674015,1740611467003,-621.65,0.00049863,120]
[354674016,1740611467013,-500.0,0.00049863,120]
[354674017,1740611467022,-1587.27,0.00049863,120]
[354674018,1740611467031,-3342.85,0.00049863,120]
[354674019,1740611467040,-932.33,0.00049863,120]
[354674020,1740611467050,-965.08,0.00049863,120]
[354674021,1740611467059,-500.0,0.00049863,120]
[354674022,1740611467068,-301.21532777,0.00049863,120]
[354674023,1740611467078,-500.0,0.00049863,120]
[354674024,1740611467087,-827.96,0.00049863,120]
[354674025,1740611467097,-585.93,0.00049863,120]
[354674026,1740611467106,-856.42,0.00049863,120]
[354674027,1740611467115,-500.0,0.00049863,120]
[354674028,1740611467124,-351.191546,0.00049863,120]
[354674029,1740611467134,-500.0,0.00049888,2]
[354674030,1740611467144,-500.0,0.00049894,31]
[354674031,1740611467153,-500.0,0.00049988,2]
[354674032,1740611467163,-500.0,0.00050007,2]
[354674033,1740611467173,-10000.0,0.00050059,120]
[354674034,1740611467182,-500.0,0.00050088,2]
[354674035,1740611467192,-1411.93110154,0.00050098,78]
[354674036,1740611467201,-151.0,0.00050136,3]
[354674037,1740611467210,-529.938318,0.00050136,30]
[354674038,1740611467219,-1305.01,0.00050136,120]
[354674039,1740611467228,-202.543124,0.00050136,120]
[354674040,1740611467238,-202.543124,0.00050136,120]
[354674041,1740611467247,-151.0,0.00050136,120]
[354674042,1740611467256,-500.0,0.00050136,120]
[354674043,1740611467266,-1808.84,0.00050136,120]
[354674044,1740611467276,-500.0,0.00050136,120]
[354674045,1740611467286,-500.0,0.00050136,120]
[354674046,1740611467298,-500.0,0.00050136,120]
[354674047,1740611467307,-878.8,0.00050136,120]
[354674048,1740611467317,-721.08,0.00050136,120]
[354674049,1740611467326,-500.0,0.00050136,120]
[354674050,1740611467337,-151.0,0.00050136,120]
[354674051,1740611467346,-151.0,0.00050136,120]
[354674052,1740611467356,-500.0,0.00050136,120]
[354674053,1740611467365,-184.121902,0.00050136,120]
[354674054,1740611467377,-184.121902,0.00050136,120]
[354674055,1740611467386,-448.24868411,0.00050136,120]
[354674056,1740611467395,-638.14,0.00050136,120]
[354674057,1740611467405,-184.121902,0.00050136,120]
[354674058,1740611467415,-184.121902,0.00050136,120]
[354674059,1740611467424,-894.39,0.00050136,120]
[354674060,1740611467433,-863.26,0.00050136,120]
[354674061,1740611467443,-500.0,0.00050136,120]
[354674062,1740611467452,-500.0,0.00050136,120]
[354674063,1740611467463,-500.0,0.00050136,120]
[354674064,1740611467472,-500.0,0.00050136,120]
[354674065,1740611467481,-504.03609279,0.00050136,120]
[354674066,1740611467490,-151.0,0.00050136,120]
[354674067,1740611467499,-151.0,0.00050136,120]
[354674068,1740611467509,-500.0,0.00050136,120]
[354674069,1740611467518,-518.95226713,0.00050136,120]
[354674070,1740611467527,-1032.35,0.00050136,120]
[354674071,1740611467537,-151.0,0.00050136,120]
[354674072,1740611467546,-500.0,0.00050136,120]
[354674073,1740611467555,-1386.303169,0.00050136,120]
[354674074,1740611467564,-1386.303169,0.00050136,120]
[354674075,1740611467574,-576.66,0.00050136,120]
[354674076,1740611467583,-500.0,0.00050136,120]
[354674077,1740611467593,-300.0,0.00050136,120]
[354674078,1740611467602,-500.0,0.00050136,120]
[354674079,1740611467612,-2909.135425,0.00050136,120]
[354674080,1740611467621,-2909.135425,0.00050136,120]
[354674081,1740611467631,-500.0,0.00050136,120]
[354674082,1740611467640,-2909.135425,0.00050136,120]
[354674083,1740611467650,-2909.135425,0.00050136,120]
[354674084,1740611467659,-694.57,0.00050136,120]
[354674085,1740611467668,-1458.66,0.00050136,120]
[354674086,1740611467677,-558.29,0.00050136,120]
[354674087,1740611467688,-1101.67,0.00050136,120]
[354674088,1740611467697,-500.0,0.00050136,120]
[354674089,1740611467707,-364.037634,0.00050136,120]
[354674090,1740611467716,-829.08,0.00050136,120]
[354674091,1740611467726,-364.037634,0.00050136,120]
[354674092,1740611467735,-500.0,0.00050136,120]
[354674093,1740611467744,-1096.28,0.00050136,120]
[354674094,1740611467753,-255.475525,0.00050136,120]
[354674095,1740611467763,-500.0,0.00050136,120]
[354674096,1740611467774,-500.94,0.00050136,120]
[354674097,1740611467783,-151.0,0.00050136,120]
[354674098,1740611467792,-500.0,0.00050136,120]
[354674099,1740611467802,-500.0,0.00050136,120]
[354674100,1740611467811,-500.0,0.00050136,120]
[354674101,1740611467820,-500.0,0.00050136,120]
[354674102,1740611467829,-500.0,0.00050136,120]
[354674103,1740611467838,-530.31,0.00050136,120]
[354674104,1740611467847,-500.0,0.00050136,120]
[354674105,1740611467856,-407.28821874,0.00050136,120]
[354674106,1740611467872,-574.61178126,0.00050136,120]
[354674107,1740611467881,-500.0,0.00050136,120]
[354674108,1740611467890,-500.0,0.00050136,120]
[354674109,1740611467900,-608.71,0.00050136,120]
[354674110,1740611467909,-500.0,0.00050136,120]
[354674111,1740611467918,-2014.56,0.00050136,120]
[354674112,1740611467927,-500.0,0.00050136,120]
[354674113,1740611467936,-500.0,0.00050136,120]
[354674114,1740611467945,-574.17,0.00050136,120]
[354674115,1740611467954,-981.59,0.00050136,120]
[354674116,1740611467963,-500.0,0.00050136,120]
[354674117,1740611467972,-500.0,0.00050136,120]
[354674118,1740611467982,-500.0,0.00050136,120]
[354674119,1740611467991,-151.0,0.00050136,120]
[354674120,1740611468001,-151.0,0.00050136,120]
[354674121,1740611468010,-500.0,0.00050136,120]
[354674122,1740611468019,-500.0,0.00050136,120]
[354674123,1740611468027,-578.07,0.00050136,120]
[354674124,1740611468037,-500.0,0.00050136,120]
[354674125,1740611468046,-500.0,0.00050136,120]
[354674126,1740611468054,-500.0,0.00050136,120]
[354674127,1740611468063,-745.74,0.00050136,120]
[354674128,1740611468072,-500.0,0.00050136,120]
[354674129,1740611468081,-500.0,0.00050136,120]
[354674130,1740611468090,-500.0,0.00050136,120]
[354674131,1740611468098,-500.0,0.00050136,120]
[354674132,1740611468107,-200.0,0.00050136,7]
[354674133,1740611468116,-789.29,0.00050136,120]
[354674134,1740611468125,-864.99,0.00050136,120]
[354674135,1740611468134,-1234.71,0.00050136,120]
[354674136,1740611468143,-958.21,0.00050136,120]
[354674137,1740611468152,-547.065136,0.00050136,120]
[354674138,1740611468161,-500.0,0.00050136,120]
[354674139,1740611468170,-500.0,0.00050136,120]
[354674140,1740611468179,-581.13347444,0.00050136,120]
[354674141,1740611468190,-869.89754438,0.00050136,120]
[354674142,1740611468237,-1681.85898118,0.00050136,120]
[354674143,1740611468246,-500.0,0.00050136,120]
[354674144,1740611468255,-500.0,0.00050136,120]
[354674145,1740611468265,-547.065136,0.00050136,120]
[354674146,1740611468276,-731.12,0.00050136,120]
[354674147,1740611468286,-500.0,0.00050136,120]
[354674148,1740611468297,-2441.42,0.00050136,120]
[354674149,1740611468307,-2284.54,0.00050136,120]
[354674150,1740611468316,-500.0,0.00050136,120]
[354674151,1740611468325,-500.0,0.00050136,120]
[354674152,1740611468336,-604.79,0.00050136,120]
[354674153,1740611468345,-3604.07,0.00050136,120]
[354674154,1740611468354,-500.0,0.00050136,120]
[354674155,1740611468364,-1337.13,0.00050136,120]
[354674156,1740611468375,-500.0,0.00050136,120]
[354674157,1740611468384,-232.80703983,0.00050136,120]
[354674158,1740611468393,-500.0,0.00050136,120]
[354674159,1740611468403,-500.0,0.00050136,120]
[354674160,1740611468413,-500.0,0.00050136,120]
[354674161,1740611468422,-500.0,0.00050136,120]
[354674162,1740611468432,-744.61,0.00050136,120]
[354674163,1740611468441,-500.0,0.00050136,120]
[354674164,1740611468451,-500.0,0.00050136,120]
[354674165,1740611468461,-140.9949472,0.00050136,120]
[354674166,1740611468473,-90.5918095,0.00050136,120]
[354674167,1740611468483,-500.0,0.00050136,120]
[354674168,1740611468492,-170.31624211,0.00050136,120]
[354674169,1740611468502,-127.46466309,0.00050136,120]
[354674170,1740611468548,-685.49533691,0.00050136,120]
[354674171,1740611468558,-500.0,0.00050136,120]
[354674172,1740611468567,-500.0,0.00050136,120]
[354674173,1740611468576,-740.91,0.00050136,120]
[354674174,1740611468586,-1087.562267,0.00050136,120]
[354674175,1740611468595,-1087.562267,0.00050136,120]
[354674176,1740611468605,-500.0,0.00050136,120]
[354674177,1740611468614,-500.0,0.00050136,120]
[354674178,1740611468623,-500.0,0.00050136,120]
[354674179,1740611468633,-1087.562267,0.00050136,120]
[354674180,1740611468643,-1912.48,0.00050136,120]
[354674181,1740611468652,-500.0,0.00050136,120]
[354674182,1740611468662,-1087.562267,0.00050136,120]
[354674183,1740611468671,-500.0,0.00050136,120]
[354674184,1740611468680,-820.06,0.00050136,120]
[354674185,1740611468690,-645.473546,0.00050136,120]
[354674186,1740611468699,-645.473546,0.00050136,120]
[354674187,1740611468710,-500.0,0.00050136,120]
[354674188,1740611468719,-500.0,0.00050136,120]
[354674189,1740611468729,-1926.16,0.00050136,120]
[354674190,1740611468740,-645.473546,0.00050136,120]
[354674191,1740611468750,-645.473546,0.00050136,120]
[354674192,1740611468759,-500.0,0.00050136,120]
[354674193,1740611468769,-840.78,0.00050136,120]
[354674194,1740611468779,-1825.54,0.00050136,120]
[354674195,1740611468789,-500.0,0.00050136,120]
[354674196,1740611468798,-3630.41,0.00050136,120]
[354674197,1740611468807,-1759.49,0.00050136,120]
[354674198,1740611468817,-500.0,0.00050136,120]
[354674199,1740611468827,-389.93141109,0.00050136,120]
[354674200,1740612003219,192.65,0.0002,2]
[354674202,1740612048524,151.19763648,0.0002,2]
[354674213,1740612355120,-193.36587052,0.00022999,2]
[354674216,1740612437078,-257.0,0.00022999,2]
[354674217,1740612437100,-1.29405948,0.00023,2]
[354674218,1740612437127,-184.84244038,0.00023,2]
[354674219,1740612441144,-366.12984552,0.00023,2]
[354674220,1740612445103,-430.72270877,0.00023,2]
[354674221,1740612445127,-1200.0,0.00023,2]
[354674222,1740612445150,-41.90581157,0.00023,2]
[354674226,1740612475727,-150.0,0.0002035,2]
[354674227,1740612476971,7100.0,0.00025,30]
[354674228,1740612494831,-150.0,0.0002035,2]
[354674229,1740612496556,6551.45087549,0.00024,120]
[354674230,1740612506100,9656.15236352,0.0002,2]
[354674231,1740612506125,4842.61302433,0.0002,2]
[354674232,1740612509818,355.15237179,0.0002,2]
[354674233,1740612513176,104010.46208099,0.00026,30]
[354674234,1740612515530,-150.0,0.0002035,2]
[354674235,1740612515946,150.0,0.00016,5]
[354674236,1740612547093,-1991.30024985,0.0002023,2]
[354674237,1740612547726,-61.42022043,0.0002023,2]
[354674238,1740612547750,-88.57977957,0.0002035,2]
[354674239,1740612551158,-15632.18836792,0.0002035,2]
[354674241,1740612551179,-264.40569012,0.00021,2]
[354674243,1740612551199,-10380.65235208,0.00021,2]
[354674244,1740612551220,-238.31706172,0.00021,2]
[354674246,1740612551239,-345.83702322,0.00022,2]
[354674247,1740612551259,-281.26822735,0.00022,2]
[354674249,1740612551280,-15643.02387574,0.00022,2]
[354674251,1740612552183,-9917.44401862,0.00022,2]
[354674252,1740612552203,-1000.0,0.00022,2]
[354674253,1740612552222,-486.8261314,0.000221,2]
[354674254,1740612552242,-1047.79202983,0.000229,2]
[354674255,1740612552262,-1158.09418843,0.00023,2]
[354674256,1740612552281,-1200.0,0.00023,2]
[354674257,1740612552300,-871.57039818,0.00023,2]
[354674258,1740612552320,-1200.0,0.00023,2]
[354674259,1740612552338,-900.0,0.00023,2]
[354674260,1740612552357,-1200.0,0.00023,2]
[354674261,1740612552376,-1200.0,0.00023,2]
[354674262,1740612552395,-900.0,0.00023,2]
[354674263,1740612552414,-1200.0,0.00023,2]
[354674264,1740612552434,-900.0,0.00023,2]
[354674265,1740612552453,-1200.0,0.00023,2]
[354674266,1740612552472,-900.0,0.00023,2]
[354674267,1740612552492,-500.0,0.00023,2]
[354674268,1740612552512,-1200.0,0.00023,2]
[354674269,1740612552531,-900.0,0.00023,2]
[354674270,1740612552551,-1200.0,0.00023,2]
[354674271,1740612552570,-900.0,0.00023,2]
[354674272,1740612552590,-900.0,0.00023,2]
[354674273,1740612552611,-900.0,0.00023,2]
[354674274,1740612552632,-1200.0,0.00023,2]
[354674275,1740612552654,-900.0,0.00023,2]
[354674276,1740612552675,-1200.0,0.00023,2]
[354674277,1740612552697,-900.0,0.00023,2]
[354674278,1740612552717,-900.0,0.00023,2]
[354674279,1740612552738,-1200.0,0.00023,2]
[354674280,1740612552758,-900.0,0.00023,2]
[354674281,1740612552777,-1598.63516901,0.00023,2]
[354674282,1740612552797,-900.0,0.00023,2]
[354674283,1740612552818,-1206.85188503,0.00023,2]
[354674284,1740612552838,-500.0,0.00023,2]
[354674285,1740612552857,-500.0,0.00023,2]
[354674286,1740612552876,-500.0,0.00023,2]
[354674287,1740612552896,-500.0,0.00023,2]
[354674288,1740612552916,-500.0,0.00023,2]
[354674289,1740612552937,-500.0,0.00023,2]
[354674290,1740612552956,-500.0,0.00023,2]
[354674291,1740612552976,-500.0,0.00023,2]
[354674292,1740612552995,-500.0,0.00023,2]
[354674293,1740612553015,-500.0,0.00023,2]
[354674294,1740612553035,-869.53213582,0.00023,2]
[354674295,1740612553056,-500.0,0.00023,2]
[354674296,1740612553076,-500.0,0.00023,2]
[354674297,1740612553097,-500.0,0.00023,2]
[354674298,1740612553119,-500.0,0.00023,2]
[354674299,1740612553139,-500.0,0.00023,2]
[354674300,1740612553159,-500.0,0.00023,2]
[354674301,1740612553180,-640.6282968,0.00023,2]
[354674302,1740612553200,-718.87995169,0.00023,2]
[354674303,1740612553221,-151.0,0.00024,14]
[354674304,1740612553241,-41301.98882405,0.00024,2]
[354674305,1740612553261,-165.79,0.00024,7]
[354674306,1740612553281,-693.75331473,0.00024999,2]
[354674307,1740612553300,-204.79021648,0.00025,2]
[354674308,1740612553322,-433.5736034,0.000252,4]
[354674309,1740612553343,-29502.45024501,0.00026,30]
[354674310,1740612553363,-379.213969,0.00026863,2]
[354674311,1740612553383,-433.57360314,0.00027314,4]
[354674312,1740612553403,-1047.79202983,0.000279,2]
[354674313,1740612553424,-500.0,0.00027933,5]
[354674314,1740612553444,-400.0719195,0.00027933,5]
[354674315,1740612553464,-500.0,0.00027933,5]
[354674316,1740612553484,-500.0,0.00027933,5]
[354674317,1740612553504,-500.0,0.00027933,5]
[354674318,1740612553524,-500.0,0.00027933,5]
[354674319,1740612553545,-500.0,0.00027933,5]
[354674320,1740612553565,-500.77884374,0.00027933,5]
[354674321,1740612553585,-500.0,0.00027933,5]
[354674322,1740612553606,-433.57360314,0.00029728,5]
[354674323,1740612553627,-161.67949252,0.00030137,2]
[354674324,1740612553649,-500.0,0.00030397,30]
[354674325,1740612553675,-500.0,0.00030397,30]
[354674326,1740612553695,-1200.0,0.00030397,30]
[354674327,1740612553717,-1200.0,0.00030397,30]
[354674328,1740612553739,-190.0,0.00030397,30]
[354674329,1740612553761,-900.0,0.00030397,30]
[354674330,1740612553781,-1200.0,0.00030397,30]
[354674331,1740612553802,-900.0,0.00030397,30]
[354674332,1740612553824,-1200.0,0.00030397,30]
[354674333,1740612553846,-900.0,0.00030397,30]
[354674334,1740612553867,-1200.0,0.00030397,30]
[354674335,1740612553888,-189.39153096,0.00030397,30]
[354674336,1740612553908,-900.0,0.00030397,30]
[354674337,1740612553928,-1200.0,0.00030397,30]
[354674338,1740612553948,-1200.0,0.00030397,30]
[354674339,1740612553968,-900.0,0.00030397,30]
[354674340,1740612553988,-1200.0,0.00030397,30]
[354674341,1740612554008,-1200.0,0.00030397,30]
[354674342,1740612554028,-900.0,0.00030397,30]
[354674343,1740612554048,-1200.0,0.00030397,30]
[354674344,1740612554068,-900.0,0.00030397,30]
[354674345,1740612554090,-1200.0,0.00030397,30]
[354674346,1740612554110,-900.0,0.00030397,30]
[354674347,1740612554130,-1200.0,0.00030397,30]
[354674348,1740612554150,-900.0,0.00030397,30]
[354674349,1740612554172,-1200.0,0.00030397,30]
[354674350,1740612554193,-233.00301535,0.00030397,30]
[354674351,1740612554935,-966.99698465,0.00030397,30]
[354674352,1740612554956,-900.0,0.00030397,30]
[354674353,1740612554978,-499.3,0.00030397,30]
[354674354,1740612554998,-900.0,0.00030397,30]
[354674355,1740612555023,-502.73991367,0.00030397,30]
[354674356,1740612555044,-900.0,0.00030397,30]
[354674357,1740612555065,-900.0,0.00030397,30]
[354674358,1740612555086,-500.0,0.00030397,30]
[354674359,1740612555106,-500.0,0.00030397,30]
[354674360,1740612555126,-900.0,0.00030397,30]
[354674361,1740612555148,-900.0,0.00030397,30]
[354674362,1740612555167,-500.0,0.00030397,30]
[354674363,1740612555188,-500.0,0.00030397,30]
[354674364,1740612555207,-163.9730473,0.00030397,30]
[354674365,1740612555227,-500.0,0.00030397,30]
[354674366,1740612555248,-500.0,0.00030397,30]
[354674367,1740612555268,-500.0,0.00030397,30]
[354674368,1740612555289,-500.0,0.00030397,30]
[354674369,1740612555311,-500.0,0.00030397,30]